[Event "MČR družstev mladších žáků 2024"]
[Site "Harrachov, Czech Republic"]
[Date "2024.06.15"]
[Round "3.26"]
[White "Koupil Stepan"]
[Black "Lutskiy Mikhail"]
[Result "1/2-1/2"]
[TimeControl "25+10"]
[WhiteFideId "23742119"]
[BlackFideId "23744308"]
[WhiteElo "1423"]
[BlackElo "1446"]

1. e4 {[%clk 00:25:17]} {[%emt 00:00:01]} c5 {[%clk 00:25:18]} {[%emt
00:00:02]} 2. Nf3 {[%clk 00:25:25]} {[%emt 00:00:03]} g6 {[%clk 00:25:25]}
{[%emt 00:00:03]} 3. d4 {[%clk 00:25:21]} {[%emt 00:00:13]} cxd4 {[%clk
00:25:31]} {[%emt 00:00:05]} 4. Nxd4 {[%clk 00:25:29]} {[%emt 00:00:01]} Bg7
{[%clk 00:25:39]} {[%emt 00:00:03]} 5. Nc3 {[%clk 00:25:27]} {[%emt 00:00:12]}
Nc6 {[%clk 00:25:40]} {[%emt 00:00:09]} 6. Be3 {[%clk 00:25:24]} {[%emt
00:00:13]} Nf6 {[%clk 00:25:31]} {[%emt 00:00:19]} 7. Bc4 {[%clk 00:25:03]}
{[%emt 00:00:30]} O-O {[%clk 00:25:36]} {[%emt 00:00:05]} 8. Bb3 {[%clk
00:25:10]} {[%emt 00:00:04]} d6 {[%clk 00:25:38]} {[%emt 00:00:07]} 9. O-O
{[%clk 00:24:35]} {[%emt 00:00:45]} Ng4 {[%clk 00:25:25]} {[%emt 00:00:24]} 10.
Nxc6 {[%clk 00:23:21]} {[%emt 00:01:24]} bxc6 {[%clk 00:25:21]} {[%emt
00:00:14]} 11. Bf4 {[%clk 00:22:59]} {[%emt 00:00:30]} Ne5 {[%clk 00:24:53]}
{[%emt 00:00:40]} 12. h3 {[%clk 00:21:53]} {[%emt 00:01:16]} a5 {[%clk
00:24:40]} {[%emt 00:00:23]} 13. a3 {[%clk 00:20:03]} {[%emt 00:02:00]} Rb8
{[%clk 00:24:12]} {[%emt 00:00:37]} 14. Qd2 {[%clk 00:19:23]} {[%emt 00:00:49]}
Ba6 {[%clk 00:23:46]} {[%emt 00:00:37]} 15. Rfe1 {[%clk 00:18:41]} {[%emt
00:00:53]} Nd7 {[%clk 00:23:43]} {[%emt 00:00:13]} 16. Be3 {[%clk 00:17:03]}
{[%emt 00:01:47]} Nb6 {[%clk 00:23:11]} {[%emt 00:00:42]} 17. Rad1 {[%clk
00:16:18]} {[%emt 00:00:54]} Nc4 {[%clk 00:22:53]} {[%emt 00:00:30]} 18. Bxc4
{[%clk 00:15:58]} {[%emt 00:00:29]} Bxc4 {[%clk 00:22:54]} {[%emt 00:00:09]} 19.
b3 {[%clk 00:15:54]} {[%emt 00:00:14]} Be6 {[%clk 00:22:57]} {[%emt 00:00:06]}
20. Ne2 {[%clk 00:14:57]} {[%emt 00:01:09]} Qd7 {[%clk 00:22:31]} {[%emt
00:00:35]} 21. Nf4 {[%clk 00:13:21]} {[%emt 00:01:47]} Rfc8 {[%clk 00:22:15]}
{[%emt 00:00:24]} 22. Nxe6 {[%clk 00:12:46]} {[%emt 00:00:47]} Qxe6 {[%clk
00:22:18]} {[%emt 00:00:07]} 23. a4 {[%clk 00:12:08]} {[%emt 00:00:48]} Rb4
{[%clk 00:21:41]} {[%emt 00:00:45]} 24. f3 {[%clk 00:11:45]} {[%emt 00:00:35]}
c5 {[%clk 00:21:27]} {[%emt 00:00:24]} 25. Qd5 {[%clk 00:10:35]} {[%emt
00:01:15]} Qxd5 {[%clk 00:20:45]} {[%emt 00:00:57]} 26. Rxd5 {[%clk 00:10:42]}
{[%emt 00:00:03]} Bc3 {[%clk 00:20:46]} {[%emt 00:00:09]} 27. Red1 {[%clk
00:10:43]} {[%emt 00:00:07]} Ra8 {[%clk 00:20:50]} {[%emt 00:00:06]} 28. R1d3
{[%clk 00:09:35]} {[%emt 00:01:18]} Bg7 {[%clk 00:20:44]} {[%emt 00:00:17]} 29.
Bd2 {[%clk 00:09:04]} {[%emt 00:00:41]} c4 {[%clk 00:19:37]} {[%emt 00:01:18]}
30. bxc4 {[%clk 00:07:45]} {[%emt 00:01:30]} Rxc4 {[%clk 00:19:34]} {[%emt
00:00:13]} 31. Rxa5 {[%clk 00:05:27]} {[%emt 00:02:27]} Rxa5 {[%clk 00:19:25]}
{[%emt 00:00:19]} 32. Bxa5 {[%clk 00:05:33]} {[%emt 00:00:03]} Rxa4 {[%clk
00:19:33]} {[%emt 00:00:02]} 33. Bc3 {[%clk 00:05:29]} {[%emt 00:00:14]} Bh6
{[%clk 00:19:29]} {[%emt 00:00:14]} 34. Bd2 {[%clk 00:04:31]} {[%emt 00:01:09]}
1/2-1/2



[ePGN "0.1;DGT LiveChess/2.2.6"]

[Event "MČR družstev mladších žáků 2024"]
[Site "Harrachov, Czech Republic"]
[Date "2024.06.15"]
[Round "3.27"]
[White "Cerny Ren"]
[Black "Sara David"]
[Result "0-1"]
[TimeControl "25+10"]
[WhiteFideId "23754559"]
[BlackFideId "23746599"]
[WhiteElo "1317"]
[BlackElo "1379"]

1. e4 {[%clk 00:25:17]} {[%emt 00:00:02]} e5 {[%clk 00:25:19]} {[%emt
00:00:01]} 2. Nc3 {[%clk 00:25:20]} {[%emt 00:00:07]} Nf6 {[%clk 00:25:28]}
{[%emt 00:00:02]} 3. Bc4 {[%clk 00:25:24]} {[%emt 00:00:06]} Nc6 {[%clk
00:24:12]} {[%emt 00:01:25]} 4. d3 {[%clk 00:25:14]} {[%emt 00:00:20]} Bc5
{[%clk 00:24:12]} {[%emt 00:00:14]} 5. Nf3 {[%clk 00:24:44]} {[%emt 00:00:35]}
d6 {[%clk 00:24:20]} {[%emt 00:00:03]} 6. h3 {[%clk 00:24:40]} {[%emt
00:00:14]} Be6 {[%clk 00:24:27]} {[%emt 00:00:03]} 7. Nd5 {[%clk 00:24:01]}
{[%emt 00:00:49]} h6 {[%clk 00:23:42]} {[%emt 00:00:55]} 8. O-O {[%clk
00:23:45]} {[%emt 00:00:26]} Qd7 {[%clk 00:23:47]} {[%emt 00:00:04]} 9. c3
{[%clk 00:22:16]} {[%emt 00:01:40]} Bxd5 {[%clk 00:23:01]} {[%emt 00:00:56]} 10.
Bxd5 {[%clk 00:22:00]} {[%emt 00:00:26]} Nxd5 {[%clk 00:23:08]} {[%emt
00:00:03]} 11. exd5 {[%clk 00:21:57]} {[%emt 00:00:12]} Ne7 {[%clk 00:23:10]}
{[%emt 00:00:08]} 12. b4 {[%clk 00:21:21]} {[%emt 00:00:47]} Bb6 {[%clk
00:23:14]} {[%emt 00:00:06]} 13. c4 {[%clk 00:21:24]} {[%emt 00:00:07]} g5
{[%clk 00:21:16]} {[%emt 00:02:08]} 14. a4 {[%clk 00:18:12]} {[%emt 00:03:22]}
g4 {[%clk 00:20:18]} {[%emt 00:01:09]} 15. hxg4 {[%clk 00:17:07]} {[%emt
00:01:14]} Qxg4 {[%clk 00:20:18]} {[%emt 00:00:10]} 16. a5 {[%clk 00:16:16]}
{[%emt 00:01:02]} Rg8 {[%clk 00:20:20]} {[%emt 00:00:07]} 17. Nh4 {[%clk
00:14:30]} {[%emt 00:01:56]} Bd4 {[%clk 00:18:59]} {[%emt 00:01:31]} 18. Qa4+
{[%clk 00:11:22]} {[%emt 00:03:18]} Kd8 {[%clk 00:18:36]} {[%emt 00:00:33]} 19.
Ra2 {[%clk 00:10:08]} {[%emt 00:01:24]} Qxh4 {[%clk 00:18:20]} {[%emt
00:00:25]} 20. Be3 {[%clk 00:09:38]} {[%emt 00:00:41]} Qg4 {[%clk 00:18:06]}
{[%emt 00:00:19]} 0-1



[ePGN "0.1;DGT LiveChess/2.2.6"]

[Event "MČR družstev mladších žáků 2024"]
[Site "Harrachov, Czech Republic"]
[Date "2024.06.15"]
[Round "3.28"]
[White "Malek Daniel"]
[Black "Gao Tianle"]
[Result "1/2-1/2"]
[TimeControl "25+10"]
[WhiteFideId "23742720"]
[BlackFideId "23739924"]
[WhiteElo "1246"]
[BlackElo "1120"]

1. e4 {[%clk 00:25:15]} {[%emt 00:00:04]} e6 {[%clk 00:25:19]} {[%emt
00:00:01]} 2. d4 {[%clk 00:25:18]} {[%emt 00:00:08]} d5 {[%clk 00:25:27]}
{[%emt 00:00:01]} 3. exd5 {[%clk 00:25:25]} {[%emt 00:00:03]} exd5 {[%clk
00:25:35]} {[%emt 00:00:02]} 4. c4 {[%clk 00:25:33]} {[%emt 00:00:02]} Nf6
{[%clk 00:25:37]} {[%emt 00:00:08]} 5. Nc3 {[%clk 00:25:19]} {[%emt 00:00:24]}
c6 {[%clk 00:25:42]} {[%emt 00:00:06]} 6. Nf3 {[%clk 00:24:43]} {[%emt
00:00:46]} h6 {[%clk 00:25:02]} {[%emt 00:00:49]} 7. Bf4 {[%clk 00:24:15]}
{[%emt 00:00:38]} Bd6 {[%clk 00:23:32]} {[%emt 00:01:40]} 8. Bxd6 {[%clk
00:23:07]} {[%emt 00:01:19]} Qxd6 {[%clk 00:23:38]} {[%emt 00:00:03]} 9. Bd3
{[%clk 00:22:25]} {[%emt 00:00:53]} O-O {[%clk 00:22:46]} {[%emt 00:01:03]} 10.
O-O {[%clk 00:22:25]} {[%emt 00:00:09]} Bg4 {[%clk 00:20:53]} {[%emt 00:02:02]}
11. Rc1 {[%clk 00:21:32]} {[%emt 00:01:03]} Nbd7 {[%clk 00:19:47]} {[%emt
00:01:17]} 12. cxd5 {[%clk 00:20:16]} {[%emt 00:01:26]} cxd5 {[%clk 00:19:34]}
{[%emt 00:00:23]} 13. Be2 {[%clk 00:19:22]} {[%emt 00:01:04]} Rfe8 {[%clk
00:18:27]} {[%emt 00:01:17]} 14. Nb5 {[%clk 00:18:22]} {[%emt 00:01:10]} Qb6
{[%clk 00:16:37]} {[%emt 00:01:56]} 15. Nc7 {[%clk 00:15:26]} {[%emt 00:03:09]}
Qxb2 {[%clk 00:12:48]} {[%emt 00:03:59]} 16. Rc2 {[%clk 00:13:33]} {[%emt
00:02:03]} Qa3 {[%clk 00:11:57]} {[%emt 00:01:01]} 17. Nxa8 {[%clk 00:12:25]}
{[%emt 00:01:18]} Rxa8 {[%clk 00:12:03]} {[%emt 00:00:04]} 18. Ne5 {[%clk
00:11:27]} {[%emt 00:01:08]} Bf5 {[%clk 00:11:32]} {[%emt 00:00:41]} 19. Nxd7
{[%clk 00:10:19]} {[%emt 00:01:19]} Bxd7 {[%clk 00:09:21]} {[%emt 00:02:20]} 20.
Qd3 {[%clk 00:09:32]} {[%emt 00:00:56]} Qd6 {[%clk 00:08:58]} {[%emt 00:00:32]}
21. Bf3 {[%clk 00:07:35]} {[%emt 00:02:09]} Qf4 {[%clk 00:08:29]} {[%emt
00:00:38]} 22. Qe3 {[%clk 00:06:21]} {[%emt 00:01:25]} Qf5 {[%clk 00:08:25]}
{[%emt 00:00:15]} 23. Rc7 {[%clk 00:05:00]} {[%emt 00:01:30]} Re8 {[%clk
00:08:11]} {[%emt 00:00:23]} 24. Qc3 {[%clk 00:03:35]} {[%emt 00:01:35]} Bc6
{[%clk 00:07:59]} {[%emt 00:00:23]} 25. Re1 {[%clk 00:02:17]} {[%emt 00:01:29]}
Kh7 {[%clk 00:07:20]} {[%emt 00:00:49]} 26. Rxe8 {[%clk 00:01:14]} {[%emt
00:01:13]} Nxe8 {[%clk 00:07:16]} {[%emt 00:00:14]} 27. Re7 {[%clk 00:00:58]}
{[%emt 00:00:25]} Nc7 {[%clk 00:06:18]} {[%emt 00:01:09]} 28. Re1 {[%clk
00:00:36]} {[%emt 00:00:30]} Nb5 {[%clk 00:06:18]} {[%emt 00:00:11]} 29. Qb2
{[%clk 00:00:25]} {[%emt 00:00:21]} Qf4 {[%clk 00:05:51]} {[%emt 00:00:38]} 30.
Bxd5 {[%clk 00:00:13]} {[%emt 00:00:22]} Bxd5 {[%clk 00:05:50]} {[%emt
00:00:11]} 31. Qxb5 {[%clk 00:00:21]} {[%emt 00:00:02]} Qxd4 {[%clk 00:05:40]}
{[%emt 00:00:21]} 32. Qb1+ {[%clk 00:00:29]} {[%emt 00:00:02]} g6 {[%clk
00:05:40]} {[%emt 00:00:09]} 33. h3 {[%clk 00:00:29]} {[%emt 00:00:10]} Qf4
{[%clk 00:05:31]} {[%emt 00:00:13]} 34. Qb2 {[%clk 00:00:19]} {[%emt 00:00:25]}
Qg5 {[%clk 00:05:30]} {[%emt 00:00:12]} 35. g3 {[%clk 00:00:15]} {[%emt
00:00:14]} Qh5 {[%clk 00:05:33]} {[%emt 00:00:07]} 36. h4 {[%clk 00:00:15]}
{[%emt 00:00:11]} Qf3 {[%clk 00:05:37]} {[%emt 00:00:05]} 37. Kf1 {[%clk
00:00:21]} {[%emt 00:00:04]} Bc4+ {[%clk 00:05:27]} {[%emt 00:00:20]} 38. Kg1
{[%clk 00:00:26]} {[%emt 00:00:05]} Bd5 {[%clk 00:05:34]} {[%emt 00:00:03]} 39.
Kf1 {[%clk 00:00:34]} {[%emt 00:00:02]} Bc4+ {[%clk 00:05:43]} {[%emt
00:00:01]} 1/2-1/2



[ePGN "0.1;DGT LiveChess/2.2.6"]

[Event "MČR družstev mladších žáků 2024"]
[Site "Harrachov, Czech Republic"]
[Date "2024.06.15"]
[Round "3.3"]
[White "Levchenko Alisa"]
[Black "Bucek Vit"]
[Result "0-1"]
[TimeControl "25+10"]
[WhiteFideId "23760311"]
[BlackFideId "23750812"]
[WhiteElo "1302"]
[BlackElo "1582"]

1. d4 {[%clk 00:25:15]} {[%emt 00:00:03]} Nf6 {[%clk 00:25:19]} {[%emt
00:00:01]} 2. Nf3 {[%clk 00:25:22]} {[%emt 00:00:04]} e6 {[%clk 00:25:27]}
{[%emt 00:00:02]} 3. Bg5 {[%clk 00:25:29]} {[%emt 00:00:02]} d5 {[%clk
00:25:17]} {[%emt 00:00:20]} 4. Nbd2 {[%clk 00:25:04]} {[%emt 00:00:35]} Nbd7
{[%clk 00:25:10]} {[%emt 00:00:17]} 5. e3 {[%clk 00:25:02]} {[%emt 00:00:13]}
Be7 {[%clk 00:25:14]} {[%emt 00:00:05]} 6. Bd3 {[%clk 00:24:56]} {[%emt
00:00:16]} O-O {[%clk 00:25:04]} {[%emt 00:00:20]} 7. Ne5 {[%clk 00:24:12]}
{[%emt 00:00:54]} c5 {[%clk 00:23:03]} {[%emt 00:02:10]} 8. c3 {[%clk
00:23:44]} {[%emt 00:00:38]} Qc7 {[%clk 00:22:07]} {[%emt 00:01:05]} 9. Ndf3
{[%clk 00:22:47]} {[%emt 00:01:08]} Re8 {[%clk 00:21:23]} {[%emt 00:00:52]} 10.
Rc1 {[%clk 00:17:50]} {[%emt 00:05:10]} c4 {[%clk 00:20:30]} {[%emt 00:01:02]}
11. Bb1 {[%clk 00:17:15]} {[%emt 00:00:46]} b5 {[%clk 00:20:10]} {[%emt
00:00:30]} 12. a3 {[%clk 00:16:33]} {[%emt 00:00:52]} a5 {[%clk 00:20:01]}
{[%emt 00:00:19]} 13. Bf4 {[%clk 00:11:33]} {[%emt 00:05:10]} Qb6 {[%clk
00:18:56]} {[%emt 00:01:14]} 14. Ng5 {[%clk 00:10:59]} {[%emt 00:00:44]} Rf8
{[%clk 00:17:21]} {[%emt 00:01:40]} 15. Qf3 {[%clk 00:05:43]} {[%emt 00:05:32]}
b4 {[%clk 00:14:53]} {[%emt 00:02:38]} 16. Qh3 {[%clk 00:02:38]} {[%emt
00:03:14]} h6 {[%clk 00:14:57]} {[%emt 00:00:06]} 17. axb4 {[%clk 00:00:58]}
{[%emt 00:01:51]} axb4 {[%clk 00:15:05]} {[%emt 00:00:02]} 18. O-O {[%clk
00:00:49]} {[%emt 00:00:18]} bxc3 {[%clk 00:14:55]} {[%emt 00:00:20]} 19. bxc3
{[%clk 00:00:44]} {[%emt 00:00:16]} Ra1 {[%clk 00:12:44]} {[%emt 00:02:19]} 20.
Nxd7 {[%emt 00:00:44]} Bxd7 {[%clk 00:12:49]} {[%emt 00:00:03]} 21. Nh7 {[%clk
00:00:22]} {[%emt 00:00:02]} e5 {[%clk 00:12:28]} {[%emt 00:00:31]} 22. Nxf8
{[%clk 00:00:13]} {[%emt 00:00:18]} Bxh3 {[%clk 00:12:35]} {[%emt 00:00:03]} 23.
Bh7+ {[%clk 00:00:13]} {[%emt 00:00:10]} Nxh7 {[%clk 00:12:38]} {[%emt
00:00:08]} 24. Rxa1 {[%clk 00:00:18]} {[%emt 00:00:05]} Nxf8 {[%clk 00:12:27]}
{[%emt 00:00:20]} 25. Bxe5 {[%clk 00:00:27]} {[%emt 00:00:01]} Qg6 {[%clk
00:12:30]} {[%emt 00:00:04]} 26. Bg3 {[%clk 00:00:31]} {[%emt 00:00:09]} Bf5
{[%clk 00:12:32]} {[%emt 00:00:08]} 27. Ra5 {[%clk 00:00:35]} {[%emt 00:00:06]}
Be6 {[%clk 00:12:25]} {[%emt 00:00:17]} 28. f4 {[%clk 00:00:21]} {[%emt
00:00:25]} h5 {[%clk 00:12:12]} {[%emt 00:00:22]} 29. f5 {[%clk 00:00:26]}
{[%emt 00:00:05]} Bxf5 {[%clk 00:12:20]} {[%emt 00:00:02]} 30. Rxd5 {[%clk
00:00:33]} {[%emt 00:00:02]} Bd3 {[%clk 00:12:22]} {[%emt 00:00:09]} 31. Rf4
{[%clk 00:00:32]} {[%emt 00:00:12]} h4 {[%clk 00:12:04]} {[%emt 00:00:28]} 32.
Bxh4 {[%clk 00:00:37]} {[%emt 00:00:05]} Bxh4 {[%clk 00:12:12]} {[%emt
00:00:02]} 33. Rxh4 {[%clk 00:00:45]} {[%emt 00:00:02]} Be4 {[%clk 00:12:20]}
{[%emt 00:00:02]} 34. Rxe4 {[%clk 00:00:43]} {[%emt 00:00:13]} Qxe4 {[%clk
00:12:29]} {[%emt 00:00:01]} 35. Re5 {[%clk 00:00:51]} {[%emt 00:00:02]} Qc2
{[%clk 00:12:35]} {[%emt 00:00:04]} 36. d5 {[%clk 00:00:26]} {[%emt 00:00:36]}
Qxc3 {[%clk 00:12:43]} {[%emt 00:00:02]} 37. Re8 {[%clk 00:00:34]} {[%emt
00:00:01]} Qe1# {[%clk 00:12:50]} {[%emt 00:00:03]} 0-1



[ePGN "0.1;DGT LiveChess/2.2.6"]

[Event "MČR družstev mladších žáků 2024"]
[Site "Harrachov, Czech Republic"]
[Date "2024.06.15"]
[Round "3.30"]
[White "Tehan Albert"]
[Black "Shamma Louis Shaheen"]
[Result "0-1"]
[TimeControl "25+10"]
[WhiteFideId "23762616"]
[BlackFideId "23765127"]
[WhiteElo "1037"]
[BlackElo "1015"]

1. e4 {[%clk 00:25:19]} e5 {[%clk 00:25:19]} {[%emt 00:00:01]} 2. f4 {[%clk
00:25:28]} {[%emt 00:00:01]} exf4 {[%clk 00:25:27]} {[%emt 00:00:02]} 3. Nf3
{[%clk 00:25:37]} Nc6 {[%clk 00:25:32]} {[%emt 00:00:05]} 4. Nc3 {[%clk
00:25:44]} {[%emt 00:00:04]} d6 {[%clk 00:25:33]} {[%emt 00:00:09]} 5. d4
{[%clk 00:25:53]} {[%emt 00:00:01]} Bg4 {[%clk 00:25:27]} {[%emt 00:00:16]} 6.
Bb5 {[%clk 00:26:01]} {[%emt 00:00:01]} a6 {[%clk 00:25:26]} {[%emt 00:00:11]}
7. Ba4 {[%clk 00:26:10]} {[%emt 00:00:01]} b5 {[%clk 00:25:24]} {[%emt
00:00:12]} 8. Bb3 {[%clk 00:26:19]} {[%emt 00:00:01]} Bxf3 {[%clk 00:25:28]}
{[%emt 00:00:07]} 9. Qxf3 {[%clk 00:26:24]} {[%emt 00:00:04]} Nxd4 {[%clk
00:25:33]} {[%emt 00:00:05]} 10. Qxf4 {[%clk 00:26:05]} {[%emt 00:00:29]} Nf6
{[%clk 00:25:21]} {[%emt 00:00:22]} 11. Be3 {[%clk 00:26:11]} {[%emt 00:00:05]}
Nxb3 {[%clk 00:25:25]} {[%emt 00:00:05]} 12. axb3 {[%clk 00:26:17]} {[%emt
00:00:04]} Be7 {[%clk 00:25:19]} {[%emt 00:00:16]} 13. O-O {[%clk 00:25:59]}
{[%emt 00:00:04]} O-O {[%clk 00:25:20]} {[%emt 00:00:33]} 14. Nd5 {[%clk
00:26:03]} {[%emt 00:00:06]} Nxd5 {[%clk 00:25:16]} {[%emt 00:00:15]} 15. exd5
{[%clk 00:26:10]} {[%emt 00:00:02]} Bf6 {[%clk 00:25:22]} {[%emt 00:00:04]} 16.
Bd4 {[%clk 00:25:46]} {[%emt 00:00:35]} Bxd4+ {[%clk 00:25:20]} {[%emt
00:00:12]} 17. Qxd4 {[%clk 00:25:53]} {[%emt 00:00:02]} c5 {[%emt 00:00:13]} 18.
dxc6 {[%clk 00:25:52]} {[%emt 00:00:02]} Qc7 {[%clk 00:25:21]} {[%emt
00:00:15]} 19. Qd5 {[%clk 00:25:58]} {[%emt 00:00:05]} Qb6+ {[%clk 00:25:04]}
{[%emt 00:00:26]} 20. Kh1 {[%clk 00:26:03]} {[%emt 00:00:05]} Rac8 {[%clk
00:25:11]} {[%emt 00:00:03]} 21. Rf2 {[%clk 00:26:00]} {[%emt 00:00:14]} Qxf2
{[%clk 00:25:14]} {[%emt 00:00:06]} 22. Qf3 {[%clk 00:26:03]} {[%emt 00:00:08]}
Qxc2 {[%clk 00:25:19]} {[%emt 00:00:04]} 23. Qc3 {[%clk 00:26:02]} {[%emt
00:00:11]} Qxc3 {[%clk 00:25:24]} {[%emt 00:00:06]} 24. bxc3 {[%clk 00:26:10]}
{[%emt 00:00:01]} Rxc6 {[%clk 00:25:32]} {[%emt 00:00:02]} 25. Rc1 {[%clk
00:26:19]} {[%emt 00:00:02]} b4 {[%clk 00:25:39]} {[%emt 00:00:02]} 26. c4
{[%clk 00:26:28]} {[%emt 00:00:02]} d5 {[%clk 00:25:44]} {[%emt 00:00:05]} 27.
c5 {[%clk 00:26:36]} {[%emt 00:00:02]} Rfc8 {[%clk 00:25:49]} {[%emt 00:00:04]}
28. Kg1 {[%clk 00:26:40]} {[%emt 00:00:07]} Rxc5 {[%clk 00:25:57]} {[%emt
00:00:01]} 29. Re1 {[%clk 00:26:47]} {[%emt 00:00:03]} Rc1 {[%clk 00:26:05]}
{[%emt 00:00:02]} 30. Kf2 {[%clk 00:26:49]} {[%emt 00:00:08]} Rxe1 {[%clk
00:26:13]} {[%emt 00:00:02]} 31. Kxe1 {[%clk 00:26:58]} {[%emt 00:00:01]} Rc3
{[%clk 00:26:21]} {[%emt 00:00:02]} 32. Kd2 {[%clk 00:27:06]} {[%emt 00:00:02]}
Rxb3 {[%clk 00:26:30]} {[%emt 00:00:02]} 33. g4 {[%clk 00:27:14]} {[%emt
00:00:02]} Rc3 {[%clk 00:26:38]} {[%emt 00:00:02]} 34. h3 {[%clk 00:27:21]} a5
{[%clk 00:26:38]} 35. h4 {[%clk 00:27:21]} a4 {[%clk 00:26:38]} 36. Ke2 {[%clk
00:27:29]} {[%emt 00:00:06]} a3 {[%clk 00:26:55]} {[%emt 00:00:01]} 37. g5
{[%clk 00:27:38]} a2 {[%clk 00:27:04]} {[%emt 00:00:02]} 38. h5 {[%clk
00:27:44]} {[%emt 00:00:05]} a1=Q {[%clk 00:27:11]} {[%emt 00:00:03]} 39. h6
{[%clk 00:27:46]} {[%emt 00:00:08]} Qb2+ {[%clk 00:27:18]} {[%emt 00:00:03]} 40.
Kd1 {[%clk 00:27:54]} {[%emt 00:00:02]} Rc1# {[%clk 00:27:26]} 0-1



[ePGN "0.1;DGT LiveChess/2.2.6"]

[Event "MČR družstev mladších žáků 2024"]
[Site "Harrachov, Czech Republic"]
[Date "2024.06.15"]
[Round "3.7"]
[White "Zrust Lukas"]
[Black "Trejbal Jindrich"]
[Result "1/2-1/2"]
[TimeControl "25+10"]
[WhiteFideId "23736666"]
[BlackFideId "23743948"]
[WhiteElo "1742"]
[BlackElo "1401"]

1. e4 {[%clk 00:25:17]} {[%emt 00:00:02]} e5 {[%clk 00:25:16]} {[%emt
00:00:04]} 2. Nf3 {[%clk 00:25:26]} {[%emt 00:00:02]} Nf6 {[%clk 00:25:23]}
{[%emt 00:00:02]} 3. Nc3 {[%clk 00:25:32]} {[%emt 00:00:04]} Bb4 {[%clk
00:25:31]} {[%emt 00:00:02]} 4. Nd5 {[%clk 00:22:12]} {[%emt 00:03:30]} Nxd5
{[%clk 00:24:48]} {[%emt 00:00:53]} 5. exd5 {[%clk 00:22:20]} {[%emt 00:00:02]}
d6 {[%clk 00:24:24]} {[%emt 00:00:34]} 6. Be2 {[%clk 00:20:51]} {[%emt
00:01:40]} O-O {[%clk 00:22:36]} {[%emt 00:01:58]} 7. O-O {[%clk 00:20:31]}
{[%emt 00:00:30]} Bf5 {[%clk 00:21:27]} {[%emt 00:01:18]} 8. c3 {[%clk
00:18:43]} {[%emt 00:01:59]} Bc5 {[%clk 00:21:01]} {[%emt 00:00:36]} 9. d4
{[%clk 00:16:43]} {[%emt 00:02:09]} exd4 {[%clk 00:20:58]} {[%emt 00:00:13]} 10.
Nxd4 {[%clk 00:16:46]} {[%emt 00:00:08]} Bxd4 {[%clk 00:20:02]} {[%emt
00:01:05]} 11. Qxd4 {[%clk 00:16:14]} {[%emt 00:00:43]} Nd7 {[%clk 00:18:57]}
{[%emt 00:01:14]} 12. Bf4 {[%clk 00:11:33]} {[%emt 00:04:51]} Qf6 {[%clk
00:17:11]} {[%emt 00:01:56]} 13. Qd2 {[%clk 00:07:45]} {[%emt 00:03:59]} h6
{[%clk 00:14:30]} {[%emt 00:02:51]} 14. Rfe1 {[%clk 00:05:24]} {[%emt
00:02:32]} Rfe8 {[%clk 00:10:49]} {[%emt 00:03:50]} 15. Bb5 {[%clk 00:03:57]}
{[%emt 00:01:37]} a6 {[%clk 00:10:25]} {[%emt 00:00:33]} 16. Bxd7 {[%clk
00:03:40]} {[%emt 00:00:27]} Bxd7 {[%clk 00:10:33]} {[%emt 00:00:02]} 17. Be3
{[%clk 00:02:00]} {[%emt 00:01:50]} Bf5 {[%clk 00:06:59]} {[%emt 00:03:43]} 18.
Bd4 {[%clk 00:01:19]} {[%emt 00:00:51]} Qg6 {[%clk 00:06:21]} {[%emt 00:00:48]}
19. Qf4 {[%clk 00:00:59]} {[%emt 00:00:30]} Be4 {[%clk 00:06:04]} {[%emt
00:00:27]} 20. f3 {[%clk 00:00:56]} {[%emt 00:00:13]} Bxd5 {[%clk 00:05:42]}
{[%emt 00:00:32]} 21. b3 {[%clk 00:00:14]} {[%emt 00:00:52]} c5 {[%clk
00:04:18]} {[%emt 00:01:34]} 22. Bf2 {[%clk 00:00:23]} {[%emt 00:00:01]} Bc6
{[%clk 00:03:18]} {[%emt 00:01:09]} 23. Bg3 {[%clk 00:00:13]} {[%emt 00:00:20]}
d5 {[%clk 00:02:23]} {[%emt 00:01:06]} 24. Rxe8+ {[%clk 00:00:21]} {[%emt
00:00:02]} Rxe8 {[%clk 00:02:30]} {[%emt 00:00:02]} 25. Re1 {[%clk 00:00:17]}
{[%emt 00:00:14]} Rxe1+ {[%clk 00:02:08]} {[%emt 00:00:32]} 26. Bxe1 {[%clk
00:00:26]} Qb1 {[%clk 00:01:33]} {[%emt 00:00:44]} 27. Qd2 {[%clk 00:00:35]}
Qf5 {[%clk 00:01:25]} {[%emt 00:00:20]} 28. h3 {[%clk 00:00:17]} {[%emt
00:00:28]} Qe5 {[%clk 00:00:44]} {[%emt 00:00:50]} 29. Bf2 {[%clk 00:00:16]}
{[%emt 00:00:12]} b6 {[%clk 00:00:51]} {[%emt 00:00:02]} 30. Qe3 {[%clk
00:00:18]} {[%emt 00:00:08]} Qxe3 {[%clk 00:00:53]} {[%emt 00:00:09]} 31. Bxe3
{[%clk 00:00:27]} f6 {[%clk 00:00:49]} {[%emt 00:00:13]} 32. Kf2 {[%clk
00:00:37]} Kf7 {[%clk 00:00:58]} {[%emt 00:00:03]} 33. b4 {[%clk 00:00:25]}
{[%emt 00:00:22]} cxb4 {[%clk 00:00:53]} {[%emt 00:00:15]} 34. cxb4 {[%clk
00:00:32]} {[%emt 00:00:03]} b5 {[%clk 00:00:59]} {[%emt 00:00:03]} 35. Bd4
{[%clk 00:00:36]} {[%emt 00:00:06]} Ke6 {[%clk 00:00:56]} {[%emt 00:00:13]} 36.
Ke3 {[%clk 00:00:29]} {[%emt 00:00:18]} g5 {[%clk 00:00:43]} {[%emt 00:00:21]}
37. g4 {[%clk 00:00:30]} {[%emt 00:00:10]} Be8 {[%clk 00:00:40]} {[%emt
00:00:13]} 38. Bc5 {[%clk 00:00:25]} {[%emt 00:00:16]} h5 {[%clk 00:00:38]}
{[%emt 00:00:12]} 39. Bd4 {[%clk 00:00:31]} {[%emt 00:00:05]} hxg4 {[%emt
00:00:20]} 1/2-1/2



[ePGN "0.1;DGT LiveChess/2.2.6"]